fUST/lending_fUST_20250724
["ID","MTS","AMOUNT","RATE_DAILY","PERIOD"]
[374584203,1753362661867,-528.93,0.00024931,2]
[374584205,1753362661876,-1492.5,0.00024931,2]
[374584207,1753362661886,-1410.84,0.00024931,2]
[374584209,1753362661896,-543.86,0.00024931,2]
[374584211,1753362661906,-1326.37,0.00024931,2]
[374584213,1753362661916,-460.0,0.00024931,2]
[374584215,1753362661925,-554.55,0.00024931,2]
[374584217,1753362661935,-243.379697,0.00024975,8]
[374584219,1753362661946,-1130.239946,0.0002498,5]
[374584221,1753362661956,-151.0,0.00025,7]
[374584223,1753362661966,-151.0,0.00025,7]
[374584225,1753362661975,-151.0,0.00025,7]
[374584227,1753362661985,-192.460082,0.00025,7]
[374584229,1753362661995,-192.460082,0.00025,7]
[374584231,1753362662004,-365.077775,0.00025,7]
[374584233,1753362662014,-365.077775,0.00025,7]
[374584235,1753362662024,-163.0,0.00025,7]
[374584237,1753362662034,-151.0,0.00025,7]
[374584239,1753362662043,-151.0,0.00025,7]
[374584241,1753362662053,-1000.0,0.00025,5]
[374584243,1753362662067,-500.0,0.00025027,5]
[374584245,1753362662076,-500.0,0.00025027,5]
[374584247,1753362662087,-151.0,0.00025037,7]
[374584249,1753362662097,-151.0,0.00025037,7]
[374584251,1753362662107,-151.0,0.00025037,7]
[374584253,1753362662116,-192.460082,0.00025037,7]
[374584255,1753362662126,-192.460082,0.00025037,7]
[374584257,1753362662136,-365.077775,0.00025037,7]
[374584259,1753362662146,-365.077775,0.00025037,7]
[374584261,1753362662156,-151.0,0.00025037,7]
[374584263,1753362662166,-151.0,0.00025037,7]
[374584265,1753362662176,-784.09883344,0.00025038,12]
[374584267,1753362662186,-269.0,0.0002504,2]
[374584269,1753362662199,-151.0,0.000251,11]
[374584271,1753362662209,-151.0,0.00025116,7]
[374584273,1753362662219,-966.45,0.00025131,2]
[374584275,1753362662228,-939.98,0.00025205,2]
[374584277,1753362662239,-1530.33,0.00025205,2]
[374584279,1753362662250,-839.65,0.00025205,2]
[374584282,1753362662260,-465.95,0.00025205,2]
[374584283,1753362662270,-1300.29,0.00025205,2]
[374584285,1753362662279,-584.29,0.00025205,2]
[374584287,1753362662289,-216.9,0.00025205,2]
[374584289,1753362662300,-1189.05,0.00025205,2]
[374584291,1753362662309,-1247.08,0.00025205,2]
[374584293,1753362662319,-528.93,0.00025205,2]
[374584295,1753362662328,-1492.5,0.00025205,2]
[374584297,1753362662338,-1410.84,0.00025205,2]
[374584299,1753362662347,-1668.45,0.00025205,4]
[374584301,1753362662357,-543.86,0.00025205,2]
[374584303,1753362662367,-1326.37,0.00025205,2]
[374584305,1753362662380,-268.74,0.00025205,2]
[374584307,1753362662391,-554.55,0.00025205,2]
[374584309,1753362662400,-784.09883344,0.0002521,12]
[374584311,1753362662410,-500.0,0.0002522,5]
[374584313,1753362662419,-160.0,0.00025256,3]
[374584315,1753362662428,-160.0,0.00025256,5]
[374584317,1753362662438,-303.69547516,0.00025356,14]
[374584319,1753362662453,-784.09883344,0.00025383,13]
[374584321,1753362662462,-934.27,0.000254,7]
[374584323,1753362662472,-164.0975522,0.000254,20]
[374584325,1753362662481,-23918.69,0.000254,2]
[374584327,1753362662491,-151.0,0.00025478,7]
[374584329,1753362662501,-151.0,0.00025478,7]
[374584331,1753362662513,-151.0,0.00025478,7]
[374584333,1753362662523,-151.0,0.00025478,7]
[374584335,1753362662533,-151.0,0.00025478,7]
[374584336,1753362662542,-151.0,0.00025478,7]
[374584339,1753362662552,-151.0,0.00025478,7]
[374584340,1753362662562,-151.0,0.00025478,7]
[374584342,1753362662572,-151.0,0.00025478,7]
[374584344,1753362662582,-151.0,0.00025478,7]
[374584346,1753362662591,-151.0,0.00025478,7]
[374584348,1753362662602,-151.0,0.00025478,7]
[374584350,1753362662612,-151.0,0.00025478,7]
[374584352,1753362662621,-151.0,0.00025478,7]
[374584354,1753362662630,-151.0,0.00025478,7]
[374584356,1753362662640,-151.0,0.00025478,7]
[374584358,1753362662650,-151.0,0.00025478,7]
[374584360,1753362662659,-151.0,0.00025478,7]
[374584362,1753362662669,-151.0,0.00025478,7]
[374584364,1753362662678,-157.85713283,0.00025478,7]
[374584366,1753362662688,-151.0,0.00025478,7]
[374584368,1753362662702,-151.0,0.00025478,7]
[374584370,1753362662712,-151.0,0.00025478,7]
[374584372,1753362662721,-151.0,0.00025478,7]
[374584374,1753362662731,-187.948996,0.00025478,7]
[374584375,1753362662740,-151.0,0.00025478,7]
[374584377,1753362662749,-151.0,0.00025478,7]
[374584379,1753362662759,-151.0,0.00025478,7]
[374584381,1753362662769,-179.759163,0.00025478,7]
[374584383,1753362662779,-151.0,0.00025478,7]
[374584385,1753362662788,-151.0,0.00025478,7]
[374584387,1753362662799,-151.0,0.00025478,7]
[374584389,1753362662808,-151.0,0.00025478,7]
[374584391,1753362662818,-151.0,0.00025478,7]
[374584393,1753362662827,-151.0,0.00025478,7]
[374584395,1753362662836,-151.0,0.00025478,7]
[374584397,1753362662846,-151.0,0.00025478,7]
[374584399,1753362662855,-151.0,0.00025478,7]
[374584401,1753362662863,-151.0,0.00025478,7]
[374584403,1753362662872,-151.0,0.00025478,7]
[374584404,1753362662881,-151.0,0.00025478,7]
[374584406,1753362662893,-151.0,0.00025478,7]
[374584408,1753362662902,-151.0,0.00025478,7]
[374584410,1753362662912,-151.0,0.00025478,7]
[374584412,1753362662923,-151.0,0.00025478,7]
[374584414,1753362662932,-151.0,0.00025478,7]
[374584416,1753362662946,-151.0,0.00025478,7]
[374584418,1753362662956,-151.0,0.00025478,7]
[374584420,1753362662966,-151.0,0.00025478,7]
[374584422,1753362662976,-151.0,0.00025478,7]
[374584424,1753362662986,-223.100828,0.00025478,7]
[374584426,1753362662996,-151.0,0.00025478,7]
[374584428,1753362663005,-151.0,0.00025478,7]
[374584430,1753362663014,-151.0,0.00025478,7]
[374584432,1753362663024,-151.0,0.00025478,7]
[374584434,1753362663034,-151.0,0.00025478,7]
[374584436,1753362663044,-151.0,0.00025478,7]
[374584438,1753362663054,-151.0,0.00025478,7]
[374584440,1753362663069,-151.0,0.00025478,7]
[374584442,1753362663079,-151.0,0.00025478,7]
[374584444,1753362663088,-151.0,0.00025478,7]
[374584446,1753362663099,-151.0,0.00025478,7]
[374584448,1753362663108,-151.0,0.00025478,7]
[374584450,1753362663118,-151.0,0.00025478,7]
[374584451,1753362663129,-940.1,0.00025479,2]
[374584453,1753362663140,-839.65,0.00025479,2]
[374584455,1753362663151,-465.99,0.00025479,2]
[374584457,1753362663161,-1300.37,0.00025479,2]
[374584459,1753362663171,-584.29,0.00025479,2]
[374584461,1753362663181,-1189.21,0.00025479,2]
[374584463,1753362663192,-1247.20567758,0.00025479,2]
[374584465,1753362663202,-528.98,0.00025479,2]
[374584467,1753362663212,-1492.65,0.00025479,2]
[374584469,1753362663221,-1411.02999999,0.00025479,2]
[374584471,1753362663231,-544.09271056,0.00025479,2]
[374584473,1753362663241,-1326.37,0.00025479,2]
[374584475,1753362663251,-554.67,0.00025479,2]
[374584477,1753362663261,-201.96851347,0.0002548,2]
[374584489,1753362663271,-151.0,0.0002548,2]
[374584491,1753362663389,-500.0,0.0002548,5]
[374584493,1753362663399,-593.0,0.0002548,2]
[374584495,1753362663409,-151.0,0.0002548,2]
[374584497,1753362663419,-433.0,0.0002548,2]
[374584499,1753362663430,-151.0,0.0002548,2]
[374584501,1753362663450,-221.1447869,0.0002548,2]
[374584503,1753362663460,-151.0,0.0002548,2]
[374584505,1753362663470,-184.12379564,0.0002548,2]
[374584507,1753362663480,-491.0,0.0002548,2]
[374584508,1753362663490,-500.0,0.0002548,5]
[374584510,1753362663500,-192.460082,0.00025483,7]
[374584512,1753362663511,-192.460082,0.00025483,7]
[374584514,1753362663522,-192.460082,0.00025483,7]
[374584516,1753362663532,-192.460082,0.00025483,7]
[374584518,1753362663543,-192.460082,0.00025483,7]
[374584520,1753362663552,-192.460082,0.00025483,7]
[374584522,1753362663562,-192.460082,0.00025483,7]
[374584524,1753362663572,-192.460082,0.00025483,7]
[374584526,1753362663582,-192.460082,0.00025483,7]
[374584528,1753362663592,-192.460082,0.00025483,7]
[374584530,1753362663603,-192.460082,0.00025483,7]
[374584532,1753362663614,-192.460082,0.00025483,7]
[374584534,1753362663624,-192.460082,0.00025483,7]
[374584536,1753362663634,-192.460092,0.00025483,7]
[374584538,1753362663644,-365.077775,0.00025483,7]
[374584540,1753362663653,-365.077775,0.00025483,7]
[374584542,1753362663663,-365.077775,0.00025483,7]
[374584544,1753362663672,-365.077775,0.00025483,7]
[374584545,1753362663681,-365.077775,0.00025483,7]
[374584547,1753362663693,-365.077775,0.00025483,7]
[374584549,1753362663703,-365.077775,0.00025483,7]
[374584551,1753362663712,-365.077775,0.00025483,7]
[374584553,1753362663722,-365.077775,0.00025483,7]
[374584555,1753362663731,-365.077775,0.00025483,7]
[374584557,1753362663741,-365.077775,0.00025483,7]
[374584559,1753362663750,-365.077767,0.00025483,7]
[374584561,1753362663759,-151.0,0.00025483,7]
[374584563,1753362663769,-151.0,0.00025483,7]
[374584565,1753362663779,-151.0,0.00025483,7]
[374584566,1753362663788,-151.0,0.00025483,7]
[374584568,1753362663798,-151.0,0.00025483,7]
[374584570,1753362663807,-151.0,0.00025483,7]
[374584572,1753362663816,-151.0,0.00025483,7]
[374584574,1753362663826,-151.0,0.00025483,7]
[374584576,1753362663836,-151.0,0.00025483,7]
[374584578,1753362663846,-151.0,0.00025483,7]
[374584580,1753362663855,-151.0,0.00025483,7]
[374584582,1753362663865,-151.0,0.00025483,7]
[374584584,1753362663875,-151.0,0.00025483,7]
[374584586,1753362663884,-151.0,0.00025483,7]
[374584588,1753362663894,-154.789083,0.00025483,7]
[374584589,1753362663903,-151.0,0.00025485,7]
[374584591,1753362663914,-151.0,0.00025485,7]
[374584593,1753362663923,-278.4946,0.00025485,7]
[374584595,1753362663933,-151.0,0.00025485,7]
[374584597,1753362663947,-151.0,0.00025485,7]
[374584599,1753362663957,-151.0,0.00025485,7]
[374584601,1753362663966,-151.0,0.00025485,7]
[374584603,1753362663976,-151.0,0.00025485,7]
[374584605,1753362663987,-151.0,0.00025485,7]
[374584607,1753362663996,-151.0,0.00025485,7]
[374584609,1753362664006,-151.0,0.00025485,7]
[374584611,1753362664016,-151.0,0.00025485,7]
[374584613,1753362664027,-151.0,0.00025485,7]
[374584615,1753362664036,-151.318303,0.00025485,7]
[374584617,1753362664046,-151.0,0.00025485,7]
[374584619,1753362664057,-151.0,0.00025485,7]
[374584621,1753362664071,-151.0,0.00025485,7]
[374584623,1753362664081,-151.0,0.00025485,7]
[374584625,1753362664091,-1500.0,0.00025485,14]
[374584627,1753362664102,-1500.0,0.00025485,14]
[374584629,1753362664112,-1500.0,0.00025485,14]
[374584630,1753362664121,-1500.0,0.00025485,14]
[374584632,1753362664132,-1500.0,0.00025485,14]
[374584634,1753362664143,-1500.0,0.00025485,14]
[374584636,1753362664153,-1500.0,0.00025485,14]
[374584638,1753362664163,-1500.0,0.00025485,14]
[374584640,1753362664172,-1500.0,0.00025485,14]
[374584642,1753362664182,-1500.0,0.00025485,14]
[374584644,1753362664194,-1500.0,0.00025485,14]
[374584646,1753362664204,-1500.0,0.00025485,14]
[374584648,1753362664214,-1500.0,0.00025485,14]
[374584650,1753362664224,-1500.0,0.00025485,14]
[374584652,1753362664235,-1500.0,0.00025485,14]
[374584654,1753362664245,-1500.0,0.00025485,14]
[374584656,1753362664255,-1500.0,0.00025485,14]
[374584658,1753362664265,-1500.0,0.00025485,14]
[374584660,1753362664275,-1500.0,0.00025485,14]
[374584661,1753362664285,-1500.0,0.00025485,14]
[374584663,1753362664295,-1500.0,0.00025485,14]
[374584665,1753362664305,-1189.889258,0.00025485,14]
[374584667,1753362664316,-151.0,0.00025485,7]
[374584669,1753362664326,-151.0,0.00025485,7]
[374584671,1753362664336,-151.0,0.00025485,7]
[374584673,1753362664345,-151.0,0.00025485,7]
[374584675,1753362664355,-151.0,0.00025485,7]
[374584677,1753362664365,-151.0,0.00025485,7]
[374584679,1753362664375,-154.266356,0.00025485,20]
[374584681,1753362664384,-151.0,0.00025485,7]
[374584683,1753362664394,-807.62560804,0.00025485,2]
[374584685,1753362664403,-269.0,0.00025493,2]
[374584687,1753362664413,-3459.54856871,0.00025497,2]
[374584689,1753362664422,-978195.73593873,0.00025498,20]
[374584709,1753362664738,-23858.72162309,0.00025498,20]
[374584710,1753362664751,-2547.20648903,0.00025498,20]
[374584711,1753362664768,-1063.96716672,0.00025498,20]
[374584729,1753362665163,-460.0,0.00019178,2]
[374584731,1753362665173,-460.0,0.00019178,2]
[374584733,1753362665182,-421.64666871,0.00019178,2]
[374584828,1753362666152,-38.35333129,0.00019178,2]
[374584829,1753362666161,-460.0,0.00019178,2]
[374584830,1753362666171,-460.0,0.00019178,2]
[374584831,1753362666181,-460.0,0.00019178,2]
[374584832,1753362666193,-462.32364681,0.00019178,2]
[374584833,1753362666202,-460.0,0.00019178,2]
[374584834,1753362666211,-460.0,0.00019452,2]
[374584835,1753362666221,-460.0,0.00019452,2]
[374584836,1753362666230,-460.0,0.00019452,2]
[374584837,1753362666240,-460.0,0.00019452,2]
[374584838,1753362666249,-460.0,0.00019452,2]
[374584839,1753362666259,-460.0,0.00019726,2]
[374584840,1753362666269,-460.0,0.00019726,2]
[374584841,1753362666278,-460.0,0.00019726,2]
[374584842,1753362666287,-460.0,0.00019726,2]
[374584843,1753362666297,-460.0,0.00019726,2]
[374584844,1753362666306,-460.0,0.0002,2]
[374584845,1753362666316,-587.06147431,0.0002,2]
[374584846,1753362666325,-460.0,0.0002,2]
[374584847,1753362666335,-460.0,0.0002,2]
[374584848,1753362666344,-460.0,0.0002,2]
[374584849,1753362666353,-460.0,0.0002,2]
[374584850,1753362666363,-460.0,0.00020273,2]
[374584851,1753362666373,-460.0,0.00020273,2]
[374584852,1753362666383,-460.0,0.00020273,2]
[374584853,1753362666392,-460.0,0.00020273,2]
[374584854,1753362666401,-460.0,0.00020547,2]
[374584855,1753362666411,-460.0,0.00020547,2]
[374584856,1753362666420,-469.9478738,0.00020547,2]
[374584857,1753362666429,-460.0,0.00020821,2]
[374584858,1753362666439,-460.0,0.00020821,2]
[374584859,1753362666450,-460.0,0.00020821,2]
[374584860,1753362666459,-460.0,0.00021095,2]
[374584861,1753362666468,-460.0,0.00021095,2]
[374584862,1753362666477,-460.0,0.00021095,2]
[374584863,1753362666487,-460.0,0.00021369,2]
[374584864,1753362666496,-460.0,0.00021643,2]
[374584865,1753362666506,-460.0,0.00021917,2]
[374584866,1753362666515,-236.08,0.00022191,2]
[374584867,1753362666524,-1601.60913326,0.00023041,2]
[374584868,1753362666533,-1601.60913324,0.00023303,2]
[374584869,1753362666543,-429.7456075,0.00023589,2]
[374584870,1753362666552,-628.93312589,0.00025,2]
[374584873,1753362667356,300.0,0.00019177,2]
[374585162,1753362674353,6934.35141684,0.00019177,2]
[374585163,1753362674377,10000.0,0.00019177,2]
[374585164,1753362674401,4787.3886242,0.00019177,2]
[374585165,1753362685759,529.0,0.00019176,2]
[374585166,1753362695572,4683.6113758,0.00019078,2]
[374585167,1753362695596,10000.0,0.00019078,2]
[374585168,1753362695619,10000.0,0.00019078,2]
[374585169,1753362708620,-4683.6113758,0.00019078,2]
[374585170,1753362708958,-632.7772484,0.00019078,2]
[374585172,1753362844650,-300.0,0.00019176,2]
[374585173,1753362844680,-200.0,0.00019177,2]
[374585174,1753362844710,-235.69450818,0.00019177,2]
[374585175,1753362844740,-500.0,0.00019177,2]
[374585176,1753362844769,-516.3161839,0.00019177,2]
[374585177,1753362844798,-385.83240662,0.00019177,2]
[374585178,1753362844844,-500.0,0.00019177,2]
[374585179,1753362844878,-422.98950136,0.00019177,2]
[374585180,1753362844907,-500.0,0.00019177,2]
[374585181,1753362844933,-500.0,0.00019177,2]
[374585182,1753362844959,-500.0,0.00019177,2]
[374585183,1753362844983,-378.33479988,0.00019177,2]
[374585184,1753362845332,-121.66520012,0.00019177,2]
[374585185,1753362845370,-460.0,0.00019178,2]
[374585186,1753362845399,-450.78889359,0.00019178,2]
[374585187,1753362845427,-460.0,0.00019178,2]
[374585188,1753362845455,-460.0,0.00019178,2]
[374585189,1753362845488,-460.0,0.00019178,2]
[374585190,1753362845518,-460.0,0.00019178,2]
[374585191,1753362845546,-460.0,0.00019178,2]
[374585192,1753362845573,-460.0,0.00019178,2]
[374585193,1753362845604,-460.0,0.00019178,2]
[374585194,1753362845633,-460.0,0.00019178,2]
[374585195,1753362845661,-115.09181258,0.00019178,2]
[374585196,1753362846062,-344.90818742,0.00019178,2]
[374585197,1753362846093,-460.0,0.00019178,2]
[374585198,1753362846126,-460.0,0.00019178,2]
[374585199,1753362846155,-439.89990516,0.00019178,2]
[374585200,1753362846185,-460.0,0.00019178,2]
[374585201,1753362846215,-460.0,0.00019178,2]
[374585202,1753362846244,-460.0,0.00019178,2]
[374585203,1753362846273,-460.0,0.00019178,2]
[374585204,1753362846300,-460.0,0.00019178,2]
[374585205,1753362846331,-460.0,0.00019178,2]
[374585206,1753362846363,-460.0,0.00019178,2]
[374585207,1753362846590,-460.0,0.00019178,2]
[374585208,1753362846621,-460.0,0.00019178,2]
[374585209,1753362846649,-460.0,0.00019178,2]
[374585210,1753362846675,-460.0,0.00019178,2]
[374585211,1753362846705,-460.0,0.00019178,2]
[374585212,1753362846732,-460.0,0.00019178,2]
[374585213,1753362846760,-460.0,0.00019178,2]
[374585214,1753362846790,-572.12469711,0.00019178,2]
[374585215,1753362846818,-460.0,0.00019178,2]
[374585216,1753362846846,-500.0,0.00019178,2]
[374585217,1753362848077,-500.0,0.00019178,2]
[374585218,1753362848106,-203.87518348,0.00019178,2]
[374585219,1753362848140,-460.0,0.00019178,2]
[374585220,1753362848171,-460.0,0.00019178,2]
[374585221,1753362848205,-460.0,0.00019178,2]
[374585222,1753362848235,-460.0,0.00019178,2]
[374585223,1753362848264,-460.0,0.00019178,2]
[374585224,1753362848305,-465.04220486,0.00019178,2]
[374585225,1753362848335,-372.25772257,0.00019178,2]
[374585226,1753362848366,-460.0,0.00019178,2]
[374585227,1753362848394,-460.0,0.00019178,2]
[374585228,1753362848425,-17.64977818,0.00019178,2]
[374585229,1753362848709,-442.35022182,0.00019178,2]
[374585230,1753362848739,-460.0,0.00019178,2]
[374585231,1753362848767,-460.0,0.00019178,2]
[374585232,1753362848797,-460.0,0.00019178,2]
[374585233,1753362848826,-460.0,0.00019178,2]
[374585234,1753362848856,-460.0,0.00019178,2]
[374585235,1753362848885,-500.0,0.00019178,2]
[374585236,1753362848914,-460.0,0.00019178,2]
[374585237,1753362848944,-500.0,0.00019178,2]
[374585238,1753362848972,-500.0,0.00019178,2]
[374585239,1753362849001,-135.29955636,0.00019178,2]
[374585240,1753362849246,-324.70044364,0.00019178,2]
[374585241,1753362849275,-500.0,0.00019178,2]
[374585242,1753362849305,-500.0,0.00019178,2]
[374585243,1753362849335,-500.0,0.00019178,2]
[374585244,1753362849365,-500.0,0.00019178,2]
[374585245,1753362849395,-500.0,0.00019178,2]
[374585246,1753362849423,-460.0,0.00019178,2]
[374585247,1753362849455,-460.0,0.00019178,2]
[374585248,1753362849485,-460.0,0.00019178,2]
[374585249,1753362849512,-460.0,0.00019178,2]
[374585250,1753362849541,-140.76911272,0.00019178,2]
[374585251,1753362849871,-389.06088728,0.00019178,2]
[374585252,1753362849901,-460.0,0.00019178,2]
[374585253,1753362849932,-460.0,0.00019178,2]
[374585254,1753362849962,-460.0,0.00019178,2]
[374585255,1753362849992,-460.0,0.00019178,2]
[374585256,1753362850022,-460.0,0.00019178,2]
[374585257,1753362850052,-460.0,0.00019178,2]
[374585258,1753362850081,-460.0,0.00019178,2]
[374585259,1753362850109,-462.19704695,0.00019178,2]
[374585260,1753362850140,-460.0,0.00019178,2]
[374585261,1753362850169,-460.0,0.00019178,2]
[374585262,1753362850324,-460.0,0.00019178,2]
[374585263,1753362850354,-462.28802853,0.00019178,2]
[374585264,1753362850383,-460.0,0.00019178,2]
[374585265,1753362850412,-460.0,0.00019178,2]
[374585266,1753362850441,-460.0,0.00019178,2]
[374585267,1753362850469,-460.0,0.00019178,2]
[374585268,1753362850497,-460.0,0.00019178,2]
[374585269,1753362850524,-500.0,0.00019178,2]
[374585270,1753362850551,-460.0,0.00019178,2]
[374585271,1753362850580,-460.0,0.00019178,2]
[374585272,1753362850608,-270.03630827,0.00019178,2]
[374585273,1753362851033,-175.3513264,0.00019178,2]
[374585274,1753362851063,-460.0,0.00019178,2]
[374585275,1753362851092,-258.50346014,0.00019178,2]
[374585276,1753362851126,-460.0,0.00019178,2]
[374585277,1753362851157,-1102.0,0.00019178,2]
[374585278,1753362851191,-1102.0,0.00019178,2]
[374585279,1753362851221,-460.0,0.00019178,2]
[374585280,1753362851254,-862.29042692,0.00019178,2]
[374585281,1753362929832,-1200.0,0.00019177,2]
[374585282,1753362929863,-300.0,0.00019177,2]
[374585283,1753362929893,-300.0,0.00019177,2]
[374585284,1753362929923,-460.0,0.00019178,2]
[374585285,1753362929957,-460.0,0.00019178,2]
[374585286,1753362929987,-460.0,0.00019178,2]
[374585287,1753362930018,-460.0,0.00019178,2]
[374585288,1753362930047,-460.48676689,0.00019178,2]
[374585289,1753362930080,-460.0,0.00019178,2]
[374585290,1753362930111,-419.02646622,0.00019178,2]
[374585291,1753362930618,-40.97353378,0.00019178,2]
[374585292,1753362930647,-460.0,0.00019178,2]
[374585293,1753362930677,-460.0,0.00019178,2]
[374585294,1753362930708,-469.26217849,0.00019178,2]
[374585295,1753362930738,-460.0,0.00019178,2]
[374585296,1753362930768,-460.0,0.00019178,2]
[374585297,1753362930797,-460.0,0.00019178,2]
[374585298,1753362930828,-460.0,0.00019178,2]
[374585299,1753362930861,-460.0,0.00019178,2]
[374585300,1753362930892,-460.0,0.00019178,2]
[374585301,1753362930924,-460.0,0.00019178,2]
[374585302,1753362930956,-239.52857546,0.00019178,2]
[374585303,1753362931101,-220.47142454,0.00019178,2]
[374585304,1753362931134,-460.0,0.00019178,2]
[374585305,1753362931165,-460.0,0.00019178,2]
[374585306,1753362931197,-460.0,0.00019178,2]
[374585307,1753362931229,-460.0,0.00019178,2]
[374585308,1753362931257,-460.0,0.00019178,2]
[374585309,1753362931287,-460.0,0.00019178,2]
[374585310,1753362931317,-460.0,0.00019178,2]
[374585311,1753362931350,-460.0,0.00019178,2]
[374585312,1753362931378,-460.0,0.00019178,2]
[374585313,1753362931408,-460.0,0.00019178,2]
[374585314,1753362931575,-460.0,0.00019178,2]
[374585315,1753362931605,-460.0,0.00019178,2]
[374585316,1753362931636,-460.0,0.00019178,2]
[374585317,1753362931665,-460.0,0.00019178,2]
[374585318,1753362931698,-460.0,0.00019178,2]
[374585319,1753362931729,-460.0,0.00019178,2]
[374585320,1753362931762,-460.0,0.00019178,2]
[374585321,1753362931793,-506.0,0.00019178,2]
[374585322,1753362931823,-460.0,0.00019178,2]
[374585323,1753362931854,-460.0,0.00019178,2]
[374585324,1753362931886,-248.0,0.00019178,2]
[374585325,1753362932323,-212.0,0.00019178,2]
[374585326,1753362932354,-460.0,0.00019178,2]
[374585327,1753362932387,-460.0,0.00019178,2]
[374585328,1753362932418,-500.0,0.00019178,2]
[374585329,1753362932449,-460.0,0.00019178,2]
[374585330,1753362932480,-500.0,0.00019178,2]
[374585331,1753362932510,-500.0,0.00019178,2]
[374585332,1753362932540,-460.0,0.00019178,2]
[374585333,1753362932571,-460.0,0.00019178,2]
[374585334,1753362932602,-460.0,0.00019178,2]
[374585335,1753362932633,-460.0,0.00019178,2]
[374585336,1753362933022,-460.0,0.00019178,2]
[374585337,1753362933059,-460.0,0.00019178,2]
[374585338,1753362933090,-460.0,0.00019178,2]
[374585339,1753362933121,-460.0,0.00019178,2]
[374585340,1753362933156,-500.0,0.00019178,2]
[374585341,1753362933191,-460.0,0.00019178,2]
[374585342,1753362933224,-460.0,0.00019178,2]
[374585343,1753362933359,-462.83327977,0.00019178,2]
[374585344,1753362933390,-460.0,0.00019178,2]
[374585345,1753362933424,-460.0,0.00019178,2]
[374585346,1753362933466,-254.33344046,0.00019178,2]
[374585347,1753362933906,-205.66655954,0.00019178,2]
[374585348,1753362933939,-460.0,0.00019178,2]
[374585349,1753362933971,-460.0,0.00019178,2]
[374585350,1753362934001,-460.0,0.00019178,2]
[374585351,1753362934031,-460.0,0.00019178,2]
[374585352,1753362934067,-460.0,0.00019178,2]
[374585353,1753362934097,-460.0,0.00019178,2]
[374585354,1753362934129,-460.0,0.00019178,2]
[374585355,1753362934166,-460.0,0.00019178,2]
[374585356,1753362934201,-460.76568582,0.00019178,2]
[374585357,1753362934233,-460.0,0.00019178,2]
[374585358,1753362934410,-460.0,0.00019178,2]
[374585359,1753362934444,-460.0,0.00019178,2]
[374585360,1753362934476,-460.0,0.00019178,2]
[374585361,1753362934516,-460.0,0.00019178,2]
[374585362,1753362934548,-460.0,0.00019178,2]
[374585363,1753362934580,-460.0,0.00019178,2]
[374585364,1753362934610,-460.0,0.00019178,2]
[374585365,1753362934641,-460.0,0.00019178,2]
[374585366,1753362934671,-460.0,0.00019178,2]
[374585367,1753362934703,-460.0,0.00019178,2]
[374585368,1753362934733,-340.0,0.00019178,2]